fUSD/lending_fUSD_20240301
["ID","MTS","AMOUNT","RATE_DAILY","PERIOD"]
[315974383,1709310633308,-500.0,0.00021917,2]
[315974384,1709310633317,-503.66845033,0.00021917,2]
[315974385,1709310633326,-500.0,0.00021917,2]
[315974386,1709310633335,-567.22,0.00021917,2]
[315974387,1709310633345,-616.28,0.00021917,2]
[315974388,1709310633354,-500.0,0.00021917,2]
[315974389,1709310633364,-500.0,0.00021917,2]
[315974390,1709310633374,-500.0,0.00021917,2]
[315974391,1709310633384,-688.13,0.00021917,2]
[315974392,1709310633393,-500.0,0.00021917,2]
[315974393,1709310633402,-515.99,0.00021917,2]
[315974394,1709310633412,-525.29,0.00021917,2]
[315974395,1709310633422,-540.71,0.00021917,2]
[315974396,1709310633432,-733.15,0.00021917,2]
[315974397,1709310633441,-500.0,0.00021917,2]
[315974398,1709310633451,-504.89502606,0.00021917,2]
[315974399,1709310633460,-500.0,0.00021917,2]
[315974400,1709310633470,-568.97,0.00021917,2]
[315974401,1709310633480,-500.0,0.00021917,2]
[315974402,1709310633492,-500.0,0.00021917,2]
[315974403,1709310633502,-679.31,0.00021917,2]
[315974404,1709310633514,-500.0,0.00021917,2]
[315974405,1709310633525,-500.0,0.00021917,2]
[315974406,1709310633535,-500.0,0.00021917,2]
[315974407,1709310633544,-500.0,0.00021917,2]
[315974408,1709310633554,-500.0,0.00021917,2]
[315974409,1709310633563,-500.0,0.00021917,2]
[315974410,1709310633574,-500.0,0.00021917,2]
[315974411,1709310633583,-500.0,0.00021917,2]
[315974412,1709310633593,-500.0,0.00021917,2]
[315974413,1709310633603,-500.0,0.00021917,2]
[315974414,1709310633613,-500.0,0.00021917,2]
[315974415,1709310633623,-500.0,0.00021917,2]
[315974416,1709310633633,-500.0,0.00021917,2]
[315974417,1709310633643,-500.0,0.00021917,2]
[315974418,1709310633652,-500.0,0.00021917,2]
[315974419,1709310633662,-500.0,0.00021917,2]
[315974420,1709310633672,-263.42674644,0.00021917,2]
[315974421,1709310633682,-500.0,0.00021917,2]
[315974422,1709310633692,-500.0,0.00021917,2]
[315974423,1709310633702,-500.0,0.00021917,2]
[315974424,1709310633714,-500.0,0.00021917,2]
[315974425,1709310633725,-930.43,0.00021917,2]
[315974426,1709310633738,-500.0,0.00021917,2]
[315974427,1709310633748,-500.0,0.00021917,2]
[315974428,1709310633758,-500.0,0.00021917,2]
[315974429,1709310633769,-527.12376483,0.00021917,2]
[315974430,1709310633778,-500.0,0.00021917,2]
[315974431,1709310633788,-500.0,0.00021917,2]
[315974432,1709310633797,-500.0,0.00021917,2]
[315974433,1709310633808,-478.71,0.00021917,2]
[315974434,1709310633818,-1054.67,0.00021917,2]
[315974435,1709310633827,-500.0,0.00021917,2]
[315974436,1709310633837,-2578.13,0.00021917,2]
[315974437,1709310633846,-500.0,0.00021917,2]
[315974438,1709310633856,-500.0,0.00021917,2]
[315974439,1709310633865,-500.0,0.00021917,2]
[315974440,1709310633874,-500.0,0.00021917,2]
[315974441,1709310633884,-500.0,0.00021917,2]
[315974442,1709310633893,-500.0,0.00021917,2]
[315974443,1709310633902,-500.0,0.00021917,2]
[315974444,1709310633911,-500.0,0.00021917,2]
[315974445,1709310633920,-500.0,0.00021917,2]
[315974446,1709310633930,-500.0,0.00021917,2]
[315974447,1709310633940,-1202.29,0.00021917,2]
[315974448,1709310633949,-2727.62,0.00021917,2]
[315974449,1709310633958,-500.0,0.00021917,2]
[315974450,1709310633967,-500.0,0.00021917,2]
[315974451,1709310633977,-1863.7,0.00021917,2]
[315974452,1709310633988,-954.17,0.00021917,2]
[315974453,1709310633997,-500.0,0.00021917,2]
[315974454,1709310634006,-500.0,0.00021917,2]
[315974455,1709310634015,-500.0,0.00021917,2]
[315974456,1709310634024,-1100.2,0.00021917,2]
[315974457,1709310634033,-536.37,0.00021917,2]
[315974458,1709310634042,-1220.1,0.00021917,2]
[315974459,1709310634051,-10098.69,0.00021917,2]
[315974460,1709310634060,-500.0,0.00021917,2]
[315974461,1709310634069,-647.67521571,0.00021917,2]
[315974462,1709310634078,-500.0,0.00021917,2]
[315974463,1709310634087,-824.92,0.00021917,2]
[315974464,1709310634096,-1065.8,0.00021917,2]
[315974465,1709310634105,-500.0,0.00021917,2]
[315974466,1709310634114,-500.0,0.00021917,2]
[315974467,1709310634123,-500.0,0.00021917,2]
[315974468,1709310634132,-538.25,0.00021917,2]
[315974469,1709310634141,-500.0,0.00021917,2]
[315974470,1709310634150,-500.0,0.00021917,2]
[315974471,1709310634160,-645.15,0.00021917,2]
[315974472,1709310634170,-956.04,0.00021917,2]
[315974473,1709310634179,-608.61,0.00021917,2]
[315974474,1709310634188,-500.0,0.00021917,2]
[315974475,1709310634197,-668.36,0.00021917,2]
[315974476,1709310634206,-924.66,0.00021917,2]
[315974477,1709310634215,-193.73,0.00021917,2]
[315974478,1709310634224,-500.0,0.00021917,2]
[315974479,1709310634234,-500.0,0.00021917,2]
[315974480,1709310634245,-500.0,0.00021917,2]
[315974481,1709310634254,-500.0,0.00021917,2]
[315974482,1709310634263,-825.67,0.00021917,2]
[315974483,1709310634272,-541.62,0.00021917,2]
[315974484,1709310634281,-605.7,0.00021917,2]
[315974485,1709310634290,-500.0,0.00021917,2]
[315974486,1709310634299,-1084.59,0.00021917,2]
[315974487,1709310634308,-500.0,0.00021917,2]
[315974488,1709310634317,-508.08389611,0.00021917,2]
[315974489,1709310634326,-500.0,0.00021917,2]
[315974490,1709310634335,-500.0,0.00021917,2]
[315974491,1709310634344,-500.0,0.00021917,2]
[315974492,1709310634353,-500.0,0.00021917,2]
[315974493,1709310634362,-500.0,0.00021917,2]
[315974494,1709310634371,-500.0,0.00021917,2]
[315974495,1709310634381,-802.43,0.00021917,2]
[315974496,1709310634390,-500.0,0.00021917,2]
[315974497,1709310634399,-502.20458876,0.00021917,2]
[315974498,1709310634407,-500.0,0.00021917,2]
[315974499,1709310634416,-561.84,0.00021917,2]
[315974500,1709310634425,-500.0,0.00021917,2]
[315974501,1709310634435,-500.0,0.00021917,2]
[315974502,1709310634444,-500.0,0.00021917,2]
[315974503,1709310634453,-500.0,0.00021917,2]
[315974504,1709310634462,-647.53,0.00021917,2]
[315974505,1709310634471,-500.0,0.00021917,2]
[315974506,1709310634481,-500.0,0.00021917,2]
[315974507,1709310634492,-500.0,0.00021917,2]
[315974508,1709310634501,-500.0,0.00021917,2]
[315974509,1709310634511,-517.76,0.00021917,2]
[315974510,1709310634520,-500.0,0.00021917,2]
[315974511,1709310634529,-724.16,0.00021917,2]
[315974512,1709310634539,-632.08,0.00021917,2]
[315974513,1709310634548,-500.0,0.00021917,2]
[315974514,1709310634558,-594.97,0.00021917,2]
[315974515,1709310634567,-2205.02,0.00021917,2]
[315974516,1709310634576,-500.0,0.00021917,2]
[315974517,1709310634586,-500.0,0.00021917,2]
[315974518,1709310634595,-500.0,0.00021917,2]
[315974519,1709310634604,-2722.35,0.00021917,2]
[315974520,1709310634614,-377.9,0.00021917,2]
[315974521,1709310634623,-1572.32,0.00021917,2]
[315974522,1709310634632,-500.0,0.00021917,2]
[315974523,1709310634641,-1186.53,0.00021917,2]
[315974524,1709310634650,-500.0,0.00021917,2]
[315974525,1709310634659,-500.0,0.00021917,2]
[315974526,1709310634669,-500.0,0.00021917,2]
[315974527,1709310634677,-564.2,0.00021917,2]
[315974528,1709310634686,-508.25,0.00021917,2]
[315974529,1709310634696,-500.0,0.00021917,2]
[315974530,1709310634706,-500.0,0.00021917,2]
[315974531,1709310634715,-500.0,0.00021917,2]
[315974532,1709310634725,-500.0,0.00021917,2]
[315974533,1709310634736,-701.91,0.00021917,2]
[315974534,1709310634747,-500.0,0.00021917,2]
[315974535,1709310634758,-500.0,0.00021917,2]
[315974536,1709310634768,-500.0,0.00021917,2]
[315974537,1709310634777,-540.98,0.00021917,2]
[315974538,1709310634787,-500.0,0.00021917,2]
[315974539,1709310634796,-500.0,0.00021917,2]
[315974540,1709310634806,-500.0,0.00021917,2]
[315974541,1709310634815,-506.18,0.00021917,2]
[315974542,1709310634824,-500.0,0.00021917,2]
[315974543,1709310634833,-763.91,0.00021917,2]
[315974544,1709310634842,-500.0,0.00021917,2]
[315974545,1709310634851,-2826.45,0.00021917,2]
[315974546,1709310634860,-500.0,0.00021917,2]
[315974547,1709310634869,-500.0,0.00021917,2]
[315974548,1709310634878,-346.14,0.00021917,2]
[315974549,1709310634888,-524.22,0.00021917,2]
[315974550,1709310634897,-500.0,0.00021917,2]
[315974551,1709310634906,-500.0,0.00021917,2]
[315974552,1709310634915,-500.0,0.00021917,2]
[315974553,1709310634925,-698.64,0.00021917,2]
[315974554,1709310634934,-500.0,0.00021917,2]
[315974555,1709310634943,-500.0,0.00021917,2]
[315974556,1709310634952,-500.0,0.00021917,2]
[315974557,1709310634961,-611.02809901,0.00021917,2]
[315974558,1709310634971,-440.17,0.00021917,2]
[315974559,1709310634980,-1025.69,0.00021917,2]
[315974560,1709310634990,-500.0,0.00021917,2]
[315974561,1709310635000,-1054.25,0.00021917,2]
[315974562,1709310635010,-2797.64,0.00021917,2]
[315974563,1709310635020,-658.44,0.00021917,2]
[315974564,1709310635030,-770.59,0.00021917,2]
[315974565,1709310635040,-188.27,0.00021917,2]
[315974566,1709310635050,-500.0,0.00021917,2]
[315974567,1709310635060,-754.86,0.00021917,2]
[315974568,1709310635070,-500.0,0.00021917,2]
[315974569,1709310635080,-500.0,0.00021917,2]
[315974570,1709310635090,-500.0,0.00021917,2]
[315974571,1709310635100,-154.84,0.00021917,2]
[315974572,1709310635110,-1024.68,0.00021917,2]
[315974573,1709310635120,-563.0,0.00021917,2]
[315974574,1709310635129,-500.0,0.00021917,2]
[315974575,1709310635139,-500.0,0.00021917,2]
[315974576,1709310635149,-2433.01,0.00021917,2]
[315974577,1709310635158,-500.0,0.00021917,2]
[315974578,1709310635168,-765.11,0.00021917,2]
[315974579,1709310635178,-3350.87,0.00021917,2]
[315974580,1709310635188,-1773.82,0.00021917,2]
[315974581,1709310635198,-637.49,0.00021917,2]
[315974582,1709310635208,-1560.05,0.00021917,2]
[315974583,1709310635218,-500.0,0.00021917,2]
[315974584,1709310635228,-500.0,0.00021917,2]
[315974585,1709310635241,-925.38,0.00021917,2]
[315974586,1709310635251,-2552.56,0.00021917,2]
[315974587,1709310635262,-3623.37,0.00021917,2]
[315974588,1709310635272,-500.0,0.00021917,2]
[315974589,1709310635283,-617.97,0.00021917,2]
[315974590,1709310635294,-1079.86,0.00021917,2]
[315974591,1709310635304,-500.0,0.00021917,2]
[315974592,1709310635314,-500.0,0.00021917,2]
[315974593,1709310635324,-646.07,0.00021917,2]
[315974594,1709310635334,-2717.68,0.00021917,2]
[315974595,1709310635345,-2303.88,0.00021917,2]
[315974596,1709310635355,-626.41,0.00021917,2]
[315974597,1709310635366,-500.0,0.00021917,2]
[315974598,1709310635376,-500.0,0.00021917,2]
[315974599,1709310635387,-1369.93,0.00021917,2]
[315974600,1709310635398,-500.0,0.00021917,2]
[315974601,1709310635408,-500.0,0.00021917,2]
[315974602,1709310635419,-2851.19,0.00021917,2]
[315974603,1709310635430,-500.0,0.00021917,2]
[315974604,1709310635441,-500.0,0.00021917,2]
[315974605,1709310635452,-474.95,0.00021917,2]
[315974606,1709310635462,-500.0,0.00021917,2]
[315974607,1709310635473,-3123.85,0.00021917,2]
[315974608,1709310635484,-3307.3,0.00021917,2]
[315974609,1709310635500,-710.52,0.00021917,2]
[315974610,1709310635510,-500.0,0.00021917,2]
[315974611,1709310635519,-908.49,0.00021917,2]
[315974612,1709310635529,-4288.75,0.00021917,2]
[315974613,1709310635539,-1658.48,0.00021917,2]
[315974614,1709310635549,-674.26,0.00021917,2]
[315974615,1709310635559,-500.0,0.00021917,2]
[315974616,1709310635569,-645.9,0.00021917,2]
[315974617,1709310635580,-500.0,0.00021917,2]
[315974618,1709310635590,-158.25,0.00021918,2]
[315974619,1709310635602,-157.51,0.00021918,2]
[315974620,1709310635612,-578.5681,0.00021927,2]
[315974621,1709310635623,-1276.38030249,0.00021972,2]
[315974622,1709310635634,-200.0,0.00021987,2]
[315974623,1709310635645,-499.99999999,0.00021999,8]
[315974624,1709310635656,-165.0,0.00022,2]
[315974625,1709310635667,-10000.0,0.00022,2]
[315974626,1709310635677,-370722.77536402,0.00022,2]
[315974627,1709310636090,-1047.0,0.00022,2]
[315974628,1709310636103,-1266.01159549,0.00022,2]
[315974629,1709310636129,-569.6954201,0.00022,2]
[315974630,1709310636145,-359.82723398,0.00022,2]
[315974631,1709310636167,-741.51509839,0.00022,2]
[315974632,1709310636180,-95144.00000129,0.00022,2]
[315974638,1709310638013,-204.0,0.00019482,2]
[315974639,1709310638024,-204.0,0.00021865,5]
[315974640,1709310638034,-821.76,0.00022,2]
[315974641,1709310638047,-4881.57462516,0.00022,2]
[315974642,1709310638059,-1897.12584738,0.00022,2]
[315974643,1709310638072,-992.26547985,0.00022,2]
[315974644,1709310638084,-250.0,0.00022,2]
[315975091,1709310642471,-624.5192374,0.00022,2]
[315975093,1709310642484,-569.41131474,0.00022,2]
[315975095,1709310642496,-56776.64201792,0.00022,2]
[315975097,1709310642513,-500.0,0.00021917,2]
[315975098,1709310642522,-503.76000001,0.00022,2]
[315975099,1709310642548,-100339.07246857,0.00022,2]
[315975100,1709310642559,-265.736,0.00022,2]
[315975101,1709310642579,-338.283,0.00022,2]
[315975186,1709310643270,-1000.0,0.000201,2]
[315975188,1709310643280,-867.01657999,0.00022,2]
[315975191,1709310643300,-8546.45679491,0.00022,2]
[315975226,1709310643616,-6160.9248,0.00022,2]
[315975254,1709310643902,-6785.01558288,0.00022,2]
[315975257,1709310643915,-20618.25417711,0.00022,2]
[315975504,1709310646456,-648.04999985,0.00021917,2]
[315975507,1709310646478,-1822.66000015,0.00021917,2]
[315975509,1709310646488,-914.41,0.00021917,2]
[315975510,1709310646499,-500.0,0.00021917,2]
[315975512,1709310646510,-1786.05,0.00021917,2]
[315975514,1709310646520,-48968.78979075,0.00022,2]
[315975517,1709310646532,-98157.24589722,0.00022,2]
[315975519,1709310646542,-155.0,0.00022,2]
[315975520,1709310646551,-331.15813948,0.00022,7]
[315975522,1709310646560,-2000.0,0.00022,2]
[315975524,1709310646570,-200.0,0.00022,2]
[315975526,1709310646580,-2109.95741371,0.00022,2]
[315975529,1709310646590,-236.80160939,0.00022,2]
[315975531,1709310646599,-624.66,0.00022,2]
[315975533,1709310646609,-500.0,0.00022,2]
[315975534,1709310646619,-2000.0,0.00022,2]
[315975535,1709310646629,-200.0,0.00022,2]
[315975536,1709310646639,-1242.0,0.00022,2]
[315975537,1709310646649,-2000.0,0.00022,2]
[315975538,1709310646659,-200.0,0.00022,2]
[315975539,1709310646668,-4000.0,0.00022,2]
[315975540,1709310646678,-2205.02,0.00022026,2]
[315975541,1709310646688,-764.5,0.00022027,2]
[315975542,1709310646697,-1000.75992314,0.00022027,2]
[315975543,1709310646707,-500.0,0.00022027,2]
[315975544,1709310646717,-500.0,0.00022027,2]
[315975545,1709310646727,-500.0,0.00022027,2]
[315975546,1709310646739,-582.53837244,0.00022027,2]
[315975547,1709310646749,-500.0,0.00022027,2]
[315975548,1709310646759,-500.0,0.00022027,2]
[315975549,1709310646769,-500.0,0.00022027,2]
[315975550,1709310646779,-369.0,0.00022027,2]
[315975551,1709310646788,-500.0,0.00022027,2]
[315975552,1709310646798,-500.0,0.00022027,2]
[315975553,1709310646810,-500.0,0.00022027,2]
[315975554,1709310646821,-417.51705378,0.00022027,2]
[315975555,1709310646830,-500.0,0.00022027,2]
[315975556,1709310646840,-500.0,0.00022027,2]
[315975557,1709310646849,-500.0,0.00022027,2]
[315975558,1709310646859,-278.81019629,0.00022027,2]
[315975559,1709310646868,-500.0,0.00022027,2]
[315975560,1709310646877,-500.0,0.00022027,2]
[315975561,1709310646887,-500.0,0.00022027,2]
[315975562,1709310646897,-500.0,0.00022027,2]
[315975563,1709310646907,-500.0,0.00022027,2]
[315975564,1709310646916,-500.0,0.00022027,2]
[315975565,1709310646926,-500.0,0.00022027,2]
[315975566,1709310646935,-500.0,0.00022027,2]
[315975567,1709310646945,-500.0,0.00022027,2]
[315975568,1709310646954,-500.0,0.00022027,2]
[315975569,1709310646964,-500.0,0.00022027,2]
[315975570,1709310646974,-500.0,0.00022027,2]
[315975571,1709310646983,-500.0,0.00022027,2]
[315975572,1709310646993,-500.0,0.00022027,2]
[315975573,1709310647005,-500.0,0.00022027,2]
[315975574,1709310647014,-500.0,0.00022027,2]
[315975575,1709310647024,-500.0,0.00022027,2]
[315975576,1709310647034,-500.0,0.00022027,2]
[315975577,1709310647044,-500.0,0.00022027,2]
[315975578,1709310647054,-500.0,0.00022027,2]
[315975580,1709310647063,-500.0,0.00022027,2]
[315975582,1709310647073,-500.0,0.00022027,2]
[315975584,1709310647083,-514.9,0.00022027,2]
[315975586,1709310647092,-150.0,0.00022027,2]
[315975588,1709310647102,-500.0,0.00022027,2]
[315975590,1709310647111,-500.0,0.00022027,2]
[315975592,1709310647121,-656.09,0.00022027,2]
[315975594,1709310647131,-500.0,0.00022027,2]
[315975596,1709310647141,-500.0,0.00022027,2]
[315975598,1709310647150,-500.0,0.00022027,2]
[315975600,1709310647160,-728.97,0.00022027,2]
[315975602,1709310647170,-500.0,0.00022027,2]
[315975604,1709310647180,-500.0,0.00022027,2]
[315975606,1709310647189,-500.0,0.00022027,2]
[315975608,1709310647199,-500.0,0.00022027,2]
[315975610,1709310647209,-500.0,0.00022027,2]
[315975612,1709310647219,-500.0,0.00022027,2]
[315975613,1709310647229,-500.0,0.00022027,2]
[315975614,1709310647239,-500.0,0.00022027,2]
[315975615,1709310647250,-500.0,0.00022027,2]
[315975616,1709310647259,-572.38,0.00022027,2]
[315975617,1709310647268,-500.0,0.00022027,2]
[315975618,1709310647278,-500.0,0.00022027,2]
[315975619,1709310647287,-500.0,0.00022027,2]
[315975620,1709310647297,-500.0,0.00022027,2]
[315975621,1709310647306,-500.0,0.00022027,2]
[315975623,1709310647316,-500.0,0.00022027,2]
[315975625,1709310647325,-345.49590633,0.00022027,2]
[315975627,1709310647339,-154.50409367,0.00022027,2]
[315975629,1709310647348,-500.0,0.00022027,2]
[315975631,1709310647358,-567.22,0.00022027,2]
[315975633,1709310647368,-500.0,0.00022027,2]
[315975635,1709310647377,-688.13,0.00022027,2]
[315975637,1709310647386,-500.0,0.00022027,2]
[315975639,1709310647396,-540.71,0.00022027,2]
[315975641,1709310647406,-733.15,0.00022027,2]
[315975644,1709310647416,-500.0,0.00022027,2]
[315975646,1709310647426,-568.97,0.00022027,2]
[315975647,1709310647435,-97.17840133,0.00022027,2]
[315975648,1709310647454,-402.82159867,0.00022027,2]
[315975649,1709310647464,-65.55040103,0.00022027,2]
[315975650,1709310647486,-434.44959897,0.00022027,2]
[315975651,1709310647496,-679.31,0.00022027,2]
[315975652,1709310647507,-500.0,0.00022027,2]
[315975653,1709310647517,-500.0,0.00022027,2]
[315975654,1709310647527,-500.0,0.00022027,2]
[315975655,1709310647537,-386.24040273,0.00022027,2]
[315975656,1709310647549,-113.75959727,0.00022027,2]
[315975657,1709310647559,-500.0,0.00022027,2]
[315975658,1709310647569,-500.0,0.00022027,2]
[315975659,1709310647579,-425.43972287,0.00022027,2]
[315975660,1709310647589,-500.0,0.00022027,2]
[315975661,1709310647598,-95.44299538,0.00022027,2]
[315975662,1709310647611,-404.55700462,0.00022027,2]
[315975663,1709310647620,-500.0,0.00022027,2]
[315975664,1709310647630,-500.0,0.00022027,2]
[315975665,1709310647640,-500.0,0.00022027,2]
[315975666,1709310647650,-241.53599538,0.00022027,2]
[315975670,1709311225547,500.0,0.00022,30]
[315975688,1709311832184,-339.25,0.00016901,2]
[315975689,1709311832254,-363.2487408,0.00016901,2]
[315975690,1709311832264,-158.67162551,0.00016902,2]
[315975691,1709311832274,-2550.22176257,0.00016999,2]
[315975692,1709311832288,-19596.24377058,0.00016999,2]
[315975693,1709311832298,-155.0,0.00017,2]
[315975694,1709311832308,-5337.57667588,0.00017,2]
[315975695,1709311832318,-1285.52369914,0.00017001,5]
[315975696,1709311832329,-5492.2922799,0.00017002,2]
[315975697,1709311832339,-204.73580449,0.00017002,2]
[315975698,1709311832349,-546.60403373,0.00017002,2]
[315975699,1709311832359,-150.0,0.00017096,2]
[315975700,1709311832370,-150.0,0.00017136,2]
[315975701,1709311832380,-1037.7,0.00017273,2]
[315975702,1709311832390,-158.67162548,0.00017616,2]
[315975703,1709311832400,-150.0,0.00017684,2]
[315975704,1709311832410,-644.0,0.00018129,2]
[315975705,1709311832419,-1124.83,0.00018136,2]
[315975706,1709311832429,-150.0,0.00018232,2]
[315975707,1709311832439,-158.67162548,0.0001833,2]
[315975708,1709311832449,-158.67162548,0.00019044,2]
[315975709,1709311832459,-800.0,0.00019117,2]
[315975710,1709311832470,-250.0,0.00019192,2]
[315975711,1709311832480,-211.35,0.00019219,2]
[315975712,1709311832490,-2034.37,0.00019219,2]
[315975713,1709311832501,-951.74,0.00019289,2]
[315975714,1709311832511,-160.16,0.00019306,2]
[315975715,1709311832524,-4212.86,0.00019337,2]
[315975716,1709311832535,-951.74,0.00019391,2]
[315975717,1709311832546,-951.74,0.00019492,2]
[315975718,1709311832556,-1037.7,0.00019537,2]
[315975719,1709311832567,-951.74,0.00019594,2]
[315975720,1709311832577,-160.16,0.00019641,2]
[315975721,1709311832587,-423.85500001,0.0001967,2]
[315975722,1709311832597,-951.74,0.00019695,2]
[315975723,1709311832607,-240.82,0.00019753,2]
[315975724,1709311832617,-158.67162548,0.00019758,2]
[315975726,1709311832627,-951.74,0.00019797,2]
[315975728,1709311832637,-200.0,0.00019811,2]
[315975730,1709311832647,-171.87,0.00019827,2]
[315975732,1709311832658,-951.74,0.00019898,2]
[315975734,1709311832667,-167.64,0.00019948,2]
[315975737,1709311832677,-160.16,0.00019976,2]
[315975739,1709311832687,-951.74,0.0002,2]
[315975741,1709311832697,-350.0,0.0002,3]
[315975743,1709311832707,-951.74,0.00020101,2]
[315975744,1709311832717,-951.74,0.00020203,2]
[315975745,1709311832726,-951.74,0.00020304,2]
[315975746,1709311832736,-160.16,0.00020312,2]
[315975747,1709311832747,-951.74,0.00020406,2]
[315975748,1709311832757,-364.0,0.00020451,2]
[315975749,1709311832767,-168.0,0.00020451,2]
[315975750,1709311832777,-951.74,0.00020507,2]
[315975751,1709311832787,-20031.75565759,0.0002055,2]
[315975752,1709311832798,-951.74,0.00020609,2]
[315975753,1709311832809,-951.74,0.00020711,2]
[315975754,1709311832820,-240.82,0.0002074,2]
[315975755,1709311832831,-951.74,0.00020812,2]
[315975756,1709311832841,-951.74,0.00020914,2]
[315975757,1709311832851,-42870.0,0.00020957,2]
[315975758,1709311832862,-163.13,0.00020975,2]
[315975759,1709311832874,-1000.0,0.00020987,2]
[315975760,1709311832884,-951.74,0.00021015,2]
[315975761,1709311832895,-575.15,0.00021096,2]
[315975762,1709311832905,-178.0,0.000211,2]
[315975763,1709311832916,-500.0,0.000211,2]
[315975764,1709311832926,-951.74,0.00021117,2]
[315975765,1709311832936,-364.0,0.00021136,2]
[315975766,1709311832945,-168.0,0.00021136,2]
[315975767,1709311832955,-250.0,0.00021169,2]
[315975768,1709311832965,-951.74,0.00021218,2]
[315975769,1709311832976,-204.0,0.00021248,2]
[315975770,1709311832986,-345.12,0.00021381,2]
[315975771,1709311832996,-663.8549773,0.00021457,6]
[315975772,1709311833007,-16785.1543,0.00021462,2]
[315975773,1709311833018,-663.8549773,0.00021471,6]
[315975774,1709311833029,-663.8549773,0.00021488,6]
[315975775,1709311833040,-663.8549773,0.0002149,6]
[315975776,1709311833052,-800.0,0.00021506,2]
[315975777,1709311833062,-1000.0,0.00021517,2]
[315975778,1709311833075,-2500.0,0.00021517,2]
[315975779,1709311833086,-155.0,0.0002156,2]
[315975780,1709311833098,-957.28522692,0.00021579,2]
[315975781,1709311833431,-11928.7242,0.000216,2]
[315975782,1709311833442,-137908.7465,0.00021617,2]
[315975783,1709311833455,-183.01728094,0.00021648,2]
[315975784,1709311833467,-500.0,0.00021648,2]
[315975785,1709311833478,-179.64,0.00021709,2]
[315975786,1709311833489,-4832.0804,0.00021717,2]
[315975787,1709311833500,-2539.8201,0.00021717,2]
[315975788,1709311833510,-26642.1592,0.00021717,2]
[315975789,1709311833527,-15775.0874,0.00021717,2]
[315975790,1709311833537,-10026.9035,0.00021717,2]
[315975791,1709311833548,-240.82,0.00021728,2]
[315975792,1709311833560,-957.28522686,0.00021768,2]
[315975793,1709311833571,-1037.7,0.00021801,2]
[315975794,1709311833582,-413.50292814,0.00021807,2]
[315975795,1709311833593,-245000.0,0.00021817,2]
[315975796,1709311833604,-5000.0,0.00021817,2]
[315975797,1709311833615,-893.77048801,0.00021817,2]
[315975798,1709311833628,-364.0,0.00021821,2]
[315975799,1709311833639,-168.0,0.00021821,2]
[315975800,1709311833649,-893.770488,0.00021854,2]
[315975801,1709311833661,-893.770488,0.00021891,2]
[315975802,1709311833671,-23581.69024278,0.00021895,2]
[315975803,1709311833680,-1172.21128724,0.000219,2]
[315975810,1709311838222,-1594.91785343,0.000169,2]
[315975811,1709311838232,-158.67162548,0.00020472,2]
[315975812,1709311838241,-158.67162548,0.00021186,2]
[315975813,1709311838250,-5000.0,0.00021817,2]